[Event "44th Chess Olympiad Women 2022"]
[Site "Chennai"]
[Date "2022.07.31"]
[Round "3.32"]
[White "Ni Mhuireagain, Eibhia"]
[Black "Mitsuyama, Rikka"]
[Result "1-0"]
[WhiteElo "1638"]
[BlackElo "1157"]
[Annotator "NA"]
[PlyCount "89"]
[EventDate "2022.??.??"]
[TimeControl "60"]

1. c4 {[%emt 0:00:05]} c6 {[%emt 0:00:10]} 2. Nc3 {[%emt 0:01:57]} d5 {[%emt 0:
00:00]} 3. b3 {[%emt 0:02:32]} Nf6 {[%emt 0:02:15]} 4. Nf3 {[%emt 0:02:06]} Bf5
{[%emt 0:07:43]} 5. g3 {[%emt 0:02:18]} Nbd7 {[%emt 0:06:49]} 6. Bg2 {[%emt 0:
00:00]} e5 {[%emt 0:02:59]} 7. cxd5 {[%emt 0:00:52]} cxd5 {[%emt 0:01:29]} 8.
O-O {[%emt 0:01:34]} Rc8 {[%emt 0:06:03]} 9. Nh4 {[%emt 0:05:47]} Be6 {[%emt 0:
00:00]} 10. Bb2 {[%emt 0:04:23]} e4 {[%emt 0:21:15]} 11. f4 {[%emt 0:10:42]}
Qb6+ {[%emt 0:06:39]} 12. Kh1 {[%emt 0:05:43]} Nc5 {[%emt 0:08:15]} 13. Rc1 {
[%emt 0:16:23]} Bg4 {[%emt 0:10:11]} 14. Qe1 {[%emt 0:06:32]} Be7 {[%emt 0:00:
00]} 15. h3 {[%emt 0:05:06]} Bd7 {[%emt 0:01:13]} 16. Qf2 {[%emt 0:05:09]} Qd6
{[%emt 0:03:59]} 17. Nd1 {[%emt 0:05:34]} Qa6 {[%emt 0:01:33]} 18. Nc3 {
[%emt 0:03:58]} Qd6 {[%emt 0:01:45]} 19. b4 {[%emt 0:02:17]} Ne6 {[%emt 0:00:
00]} 20. a3 {[%emt 0:01:43]} b6 {[%emt 0:02:22]} 21. Nf5 {[%emt 0:00:19]} Qb8 {
[%emt 0:00:28]} 22. Nxe7 {[%emt 0:00:23]} Kxe7 {[%emt 0:00:09]} 23. d3 {
[%emt 0:02:18]} e3 {[%emt 0:01:27]} 24. Qf3 {[%emt 0:02:49]} Bc6 {[%emt 0:00:
00]} 25. Nd1 {[%emt 0:02:07]} Bb7 {[%emt 0:03:44]} 26. Nxe3 {[%emt 0:00:38]} h5
{[%emt 0:01:30]} 27. Bxf6+ {[%emt 0:01:53]} gxf6 {[%emt 0:00:51]} 28. Nxd5+ {
[%emt 0:00:16]} Kf8 {[%emt 0:00:46]} 29. Rxc8+ {[%emt 0:01:15]} Qxc8 {[%emt 0:
00:00]} 30. Qe3 {[%emt 0:00:37]} Qc6 {[%emt 0:00:39]} 31. Rc1 {[%emt 0:00:27]}
Qd6 {[%emt 0:00:28]} 32. Nxf6 {[%emt 0:01:27]} Ba6 {[%emt 0:00:32]} 33. f5 {
[%emt 0:02:35]} Nd4 {[%emt 0:00:30]} 34. Ne4 {[%emt 0:02:03]} Qe5 {[%emt 0:00:
00]} 35. f6 {[%emt 0:00:57]} Nf5 {[%emt 0:00:28]} 36. Qf4 {[%emt 0:01:01]} Qxf4
{[%emt 0:00:39]} 37. gxf4 {[%emt 0:00:05]} Nd4 {[%emt 0:00:22]} 38. e3 {
[%emt 0:00:46]} Ne6 {[%emt 0:00:32]} 39. d4 {[%emt 0:00:30]} Rh6 {[%emt 0:00:
00]} 40. Ng5 {[%emt 0:00:32]} Rxf6 {[%emt 0:00:28]} 41. Nh7+ {[%emt 0:30:06]}
Kg7 {[%emt 0:30:09]} 42. Nxf6 {[%emt 0:00:06]} Kxf6 {[%emt 0:00:07]} 43. Bf3 {
[%emt 0:00:16]} h4 {[%emt 0:00:07]} 44. d5 {[%emt 0:00:49]} Ng7 {[%emt 0:01:39]
} 45. e4 {[%emt 0:01:15]} 1-0

[Event "44th Chess Olympiad Women 2022"]
[Site "Chennai"]
[Date "2022.07.31"]
[Round "3.32"]
[White "Putar, Lara"]
[Black "Kojima, Natsumi"]
[Result "1-0"]
[WhiteElo "1969"]
[BlackElo "1782"]
[Annotator "NA"]
[PlyCount "87"]
[EventDate "2022.??.??"]
[TimeControl "60"]

1. d4 {[%emt 0:00:16]} e6 {[%emt 0:00:19]} 2. c4 {[%emt 0:00:05]} f5 {[%emt 0:
00:00]} 3. g3 {[%emt 0:00:12]} Nf6 {[%emt 0:00:57]} 4. Bg2 {[%emt 0:00:05]} d5
{[%emt 0:00:17]} 5. Nh3 {[%emt 0:00:30]} c6 {[%emt 0:09:36]} 6. O-O {[%emt 0:
00:00]} Bd6 {[%emt 0:07:40]} 7. Bf4 {[%emt 0:00:52]} O-O {[%emt 0:01:42]} 8.
Bxd6 {[%emt 0:00:45]} Qxd6 {[%emt 0:00:08]} 9. Nd2 {[%emt 0:10:42]} Bd7 {
[%emt 0:06:39]} 10. Rc1 {[%emt 0:05:23]} Be8 {[%emt 0:02:16]} 11. Nf4 {[%emt 0:
00:00]} g5 {[%emt 0:07:50]} 12. Nd3 {[%emt 0:08:40]} Nbd7 {[%emt 0:06:14]} 13.
cxd5 {[%emt 0:08:01]} exd5 {[%emt 0:01:31]} 14. Nf3 {[%emt 0:06:56]} Ne4 {
[%emt 0:08:14]} 15. Nfe5 {[%emt 0:03:18]} Nef6 {[%emt 0:20:52]} 16. Qd2 {
[%emt 0:08:18]} Ne4 {[%emt 0:09:10]} 17. Bxe4 {[%emt 0:03:15]} dxe4 {[%emt 0:
00:00]} 18. Qxg5+ {[%emt 0:04:02]} Kh8 {[%emt 0:01:05]} 19. Nxd7 {[%emt 0:00:
00]} Bxd7 {[%emt 0:03:32]} 20. Nc5 {[%emt 0:09:25]} b6 {[%emt 0:05:25]} 21.
Nxd7 {[%emt 0:03:11]} Qxd7 {[%emt 0:00:09]} 22. e3 {[%emt 0:01:58]} Rae8 {
[%emt 0:01:46]} 23. Qh6 {[%emt 0:02:22]} Rc8 {[%emt 0:01:08]} 24. Rc2 {[%emt 0:
00:00]} c5 {[%emt 0:01:06]} 25. dxc5 {[%emt 0:00:33]} Qg7 {[%emt 0:01:41]} 26.
Qxg7+ {[%emt 0:01:47]} Kxg7 {[%emt 0:00:07]} 27. c6 {[%emt 0:02:15]} Rfd8 {
[%emt 0:00:57]} 28. b4 {[%emt 0:00:51]} Rd5 {[%emt 0:00:34]} 29. a4 {[%emt 0:
00:00]} b5 {[%emt 0:00:23]} 30. Ra1 {[%emt 0:00:58]} Rc7 {[%emt 0:00:19]} 31.
axb5 {[%emt 0:02:36]} Rxb5 {[%emt 0:00:35]} 32. Rc4 {[%emt 0:00:07]} Kf6 {
[%emt 0:00:45]} 33. Kg2 {[%emt 0:00:47]} Ke6 {[%emt 0:00:20]} 34. g4 {[%emt 0:
00:00]} fxg4 {[%emt 0:00:43]} 35. Rxe4+ {[%emt 0:00:13]} Kf5 {[%emt 0:00:30]}
36. Rf4+ {[%emt 0:00:24]} Kg5 {[%emt 0:00:11]} 37. Rc1 {[%emt 0:00:22]} h5 {
[%emt 0:00:19]} 38. Rfc4 {[%emt 0:00:24]} Kg6 {[%emt 0:00:23]} 39. Rd1 {
[%emt 0:00:22]} Rb6 {[%emt 0:01:07]} 40. Rd6+ {[%emt 0:00:39]} Kf7 {[%emt 0:00:
00]} 41. Rh6 {[%emt 0:30:41]} Ke8 {[%emt 0:30:30]} 42. Rh8+ {[%emt 0:01:05]}
Ke7 {[%emt 0:00:22]} 43. Rh7+ {[%emt 0:00:30]} Ke8 {[%emt 0:00:38]} 44. Rxc7 {
[%emt 0:00:14]} 1-0

[Event "44th Chess Olympiad Women 2022"]
[Site "Chennai"]
[Date "2022.07.31"]
[Round "3.32"]
[White "Sakai, Azumi"]
[Black "Kanyamarala, Trisha"]
[Result "1/2-1/2"]
[WhiteElo "1759"]
[BlackElo "2270"]
[Annotator "RC"]
[PlyCount "78"]
[EventDate "2022.??.??"]
[TimeControl "60"]

1. d4 {[%emt 0:00:03]} Nf6 {[%emt 0:00:12]} 2. c4 {[%emt 0:00:06]} e6 {[%emt 0:
00:00]} 3. Nf3 {[%emt 0:00:12]} d5 {[%emt 0:00:10]} 4. Nc3 {[%emt 0:00:11]} Bb4
{[%emt 0:00:18]} 5. Qa4+ {[%emt 0:00:15]} Nc6 {[%emt 0:00:09]} 6. e3 {[%emt 0:
00:00]} O-O {[%emt 0:00:56]} 7. Bd2 {[%emt 0:00:14]} a6 {[%emt 0:11:19]} 8. a3
{[%emt 0:02:08]} Bxc3 {[%emt 0:03:08]} 9. Bxc3 {[%emt 0:00:33]} Re8 {[%emt 0:
00:00]} 10. Bd3 {[%emt 0:06:00]} dxc4 {[%emt 0:04:52]} 11. Bxc4 {[%emt 0:02:37]
} Nd5 {[%emt 0:03:44]} 12. Qc2 {[%emt 0:01:51]} Qe7 {[%emt 0:07:09]} 13. O-O {
[%emt 0:05:28]} Nxc3 {[%emt 0:02:34]} 14. Qxc3 {[%emt 0:00:24]} e5 {[%emt 0:00:
00]} 15. Nxe5 {[%emt 0:06:59]} Nxe5 {[%emt 0:00:40]} 16. dxe5 {[%emt 0:00:06]}
Qxe5 {[%emt 0:02:12]} 17. Qxe5 {[%emt 0:00:47]} Rxe5 {[%emt 0:00:07]} 18. Rfd1
{[%emt 0:01:48]} Bf5 {[%emt 0:01:28]} 19. Rd5 {[%emt 0:05:07]} Rxd5 {[%emt 0:
00:00]} 20. Bxd5 {[%emt 0:00:33]} c6 {[%emt 0:01:00]} 21. Bf3 {[%emt 0:00:51]}
Kf8 {[%emt 0:01:51]} 22. Rd1 {[%emt 0:01:58]} Ke7 {[%emt 0:01:42]} 23. Kf1 {
[%emt 0:03:09]} Rc8 {[%emt 0:01:06]} 24. Ke2 {[%emt 0:02:37]} Rc7 {[%emt 0:00:
00]} 25. b4 {[%emt 0:05:44]} Be6 {[%emt 0:08:04]} 26. Rc1 {[%emt 0:04:25]} Kd6
{[%emt 0:01:44]} 27. g3 {[%emt 0:05:56]} b6 {[%emt 0:06:48]} 28. Kd3 {[%emt 0:
00:00]} Bd7 {[%emt 0:03:23]} 29. Bg2 {[%emt 0:02:01]} Ra7 {[%emt 0:01:40]} 30.
f4 {[%emt 0:01:20]} a5 {[%emt 0:02:38]} 31. e4 {[%emt 0:03:40]} axb4 {[%emt 0:
00:00]} 32. axb4 {[%emt 0:00:48]} Ra4 {[%emt 0:05:33]} 33. e5+ {[%emt 0:02:55]}
Kc7 {[%emt 0:00:44]} 34. Bxc6 {[%emt 0:05:26]} Bxc6 {[%emt 0:05:36]} 35. b5 {
[%emt 0:00:09]} Ra3+ {[%emt 0:00:18]} 36. Kd4 {[%emt 0:00:10]} Ra4+ {[%emt 0:
00:00]} 37. Kd3 {[%emt 0:00:10]} Ra3+ {[%emt 0:01:17]} 38. Kd4 {[%emt 0:00:08]}
Ra4+ {[%emt 0:00:29]} 39. Kd3 {[%emt 0:00:09]} Ra3+ {[%emt 0:00:07]} 1/2-1/2

[Event "44th Chess Olympiad Women 2022"]
[Site "Chennai"]
[Date "2022.07.31"]
[Round "3.33"]
[White "Ampaire Shakira"]
[Black "Azhar, Puteri Munajjah Az-"]
[Result "1/2-1/2"]
[WhiteElo "1666"]
[BlackElo "2018"]
[Annotator "NA"]
[PlyCount "119"]
[EventDate "2022.??.??"]
[TimeControl "60"]

1. e4 {[%emt 1:41:06]} c5 {[%emt 0:00:13]} 2. Nf3 {[%emt 0:00:41]} e6 {[%emt 0:
00:00]} 3. d4 {[%emt 0:01:45]} cxd4 {[%emt 0:00:08]} 4. Nxd4 {[%emt 0:00:26]}
a6 {[%emt 0:00:15]} 5. Nc3 {[%emt 0:00:46]} Qc7 {[%emt 0:00:33]} 6. Be2 {
[%emt 0:03:47]} Nf6 {[%emt 0:05:00]} 7. Bg5 {[%emt 0:02:21]} Be7 {[%emt 0:00:
00]} 8. O-O {[%emt 0:00:56]} b5 {[%emt 0:13:55]} 9. Bf3 {[%emt 0:02:33]} Qe5 {
[%emt 0:08:27]} 10. Bh4 {[%emt 0:01:21]} Nc6 {[%emt 0:09:30]} 11. Nxc6 {
[%emt 0:12:32]} dxc6 {[%emt 0:00:07]} 12. Bg3 {[%emt 0:00:18]} Qc5 {[%emt 0:00:
00]} 13. e5 {[%emt 0:08:54]} Nd5 {[%emt 0:00:33]} 14. Ne4 {[%emt 0:00:17]} Qb6
{[%emt 0:00:28]} 15. Nd6+ {[%emt 0:05:37]} Bxd6 {[%emt 0:00:34]} 16. exd6 {
[%emt 0:00:12]} O-O {[%emt 0:01:33]} 17. b3 {[%emt 0:00:19]} b4 {[%emt 0:05:06]
} 18. a3 {[%emt 0:01:30]} Bd7 {[%emt 0:01:37]} 19. Qd3 {[%emt 0:03:34]} a5 {
[%emt 0:01:50]} 20. Rfd1 {[%emt 0:07:57]} f6 {[%emt 0:16:58]} 21. Be4 {[%emt 0:
00:00]} f5 {[%emt 0:00:33]} 22. Bxd5 {[%emt 0:02:25]} cxd5 {[%emt 0:00:17]} 23.
Be5 {[%emt 0:00:45]} Rac8 {[%emt 0:04:23]} 24. axb4 {[%emt 0:04:37]} Qxb4 {
[%emt 0:07:18]} 25. Qd4 {[%emt 0:03:52]} Qxd4 {[%emt 0:04:36]} 26. Bxd4 {
[%emt 0:00:14]} Rxc2 {[%emt 0:03:43]} 27. Rxa5 {[%emt 0:00:55]} Rfc8 {[%emt 0:
00:00]} 28. g3 {[%emt 0:02:26]} R2c6 {[%emt 0:06:13]} 29. Ra7 {[%emt 0:03:50]}
Rd8 {[%emt 0:00:19]} 30. Be5 {[%emt 0:02:26]} Kf8 {[%emt 0:01:38]} 31. b4 {
[%emt 0:01:46]} Ke8 {[%emt 0:00:52]} 32. Rb7 {[%emt 0:01:13]} Rdc8 {[%emt 0:00:
00]} 33. Rc7 {[%emt 0:01:16]} Rb6 {[%emt 0:00:31]} 34. Rxc8+ {[%emt 0:06:02]}
Bxc8 {[%emt 0:00:07]} 35. Rb1 {[%emt 0:01:58]} Kd7 {[%emt 0:00:53]} 36. b5 {
[%emt 0:01:04]} Kd8 {[%emt 0:00:41]} 37. Rb2 {[%emt 0:03:59]} Bd7 {[%emt 0:00:
00]} 38. Bd4 {[%emt 0:03:38]} Rxb5 {[%emt 0:00:20]} 39. Rxb5 {[%emt 0:00:18]}
Bxb5 {[%emt 0:00:05]} 40. Bxg7 {[%emt 0:00:11]} Kd7 {[%emt 0:00:04]} 41. Be5 {
[%emt 0:00:25]} Kc6 {[%emt 0:02:26]} 42. f3 {[%emt 0:00:51]} Kc5 {[%emt 0:00:
00]} 43. Kf2 {[%emt 0:00:50]} d4 {[%emt 0:00:45]} 44. h3 {[%emt 0:02:52]} Kd5 {
[%emt 0:00:47]} 45. f4 {[%emt 0:00:19]} Ke4 {[%emt 0:03:24]} 46. Bf6 {[%emt 0:
00:00]} h5 {[%emt 0:00:38]} 47. Bd8 {[%emt 0:08:28]} d3 {[%emt 0:06:48]} 48.
Ba5 {[%emt 0:00:46]} Kd5 {[%emt 0:01:56]} 49. Bb4 {[%emt 0:00:56]} Kc4 {
[%emt 0:00:18]} 50. Bd2 {[%emt 0:01:54]} Kd4 {[%emt 0:01:22]} 51. Bb4 {[%emt 0:
00:00]} Bc6 {[%emt 0:01:46]} 52. Bd2 {[%emt 0:01:39]} Ke4 {[%emt 0:00:22]} 53.
Bc3 {[%emt 0:00:31]} Bb5 {[%emt 0:02:40]} 54. Bb4 {[%emt 0:04:08]} Kd4 {
[%emt 0:02:42]} 55. Kf3 {[%emt 0:01:49]} Kc4 {[%emt 0:00:45]} 56. Bd2 {[%emt 0:
00:00]} Kc5 {[%emt 0:01:13]} 57. g4 {[%emt 0:00:31]} fxg4+ {[%emt 0:01:34]} 58.
hxg4 {[%emt 0:00:21]} hxg4+ {[%emt 0:01:10]} 59. Kxg4 {[%emt 0:00:07]} Kxd6 {
[%emt 0:00:04]} 60. Kf3 {[%emt 0:00:21]} 1/2-1/2

[Event "44th Chess Olympiad Women 2022"]
[Site "Chennai"]
[Date "2022.07.31"]
[Round "3.33"]
[White "Azhar, Puteri Rifqah Fahad"]
[Black "Nansubuga, Gloria"]
[Result "1/2-1/2"]
[WhiteElo "1940"]
[BlackElo "1538"]
[Annotator "NA RC"]
[PlyCount "68"]
[EventDate "2022.??.??"]
[TimeControl "60"]

1. d4 {[%emt 0:00:13]} d5 {[%emt 0:03:46]} 2. Nf3 {[%emt 0:00:22]} c5 {[%emt 0:
00:00]} 3. c3 {[%emt 0:00:23]} e6 {[%emt 0:00:51]} 4. Bf4 {[%emt 0:01:16]} Bd6
{[%emt 0:00:29]} 5. Bg3 {[%emt 0:00:23]} Bxg3 {[%emt 0:00:12]} 6. hxg3 {
[%emt 0:00:07]} c4 {[%emt 0:01:17]} 7. Qc2 {[%emt 0:02:12]} h6 {[%emt 0:01:35]}
8. Nbd2 {[%emt 0:02:59]} Nf6 {[%emt 0:00:26]} 9. e4 {[%emt 0:00:45]} Nc6 {
[%emt 0:02:36]} 10. e5 {[%emt 0:05:55]} Nd7 {[%emt 0:00:29]} 11. g4 {[%emt 0:
00:00]} Ne7 {[%emt 0:04:11]} 12. g5 {[%emt 0:03:20]} Ng6 {[%emt 0:02:18]} 13.
gxh6 {[%emt 0:02:14]} Rxh6 {[%emt 0:01:14]} 14. Rxh6 {[%emt 0:01:26]} gxh6 {
[%emt 0:00:03]} 15. g3 {[%emt 0:00:32]} Qe7 {[%emt 0:01:08]} 16. Bg2 {[%emt 0:
00:00]} b5 {[%emt 0:02:15]} 17. Ke2 {[%emt 0:04:29]} Bb7 {[%emt 0:00:39]} 18.
Rh1 {[%emt 0:00:38]} Qf8 {[%emt 0:00:51]} 19. Nf1 {[%emt 0:09:27]} Ke7 {
[%emt 0:07:09]} 20. Qd2 {[%emt 0:04:47]} Qg7 {[%emt 0:03:27]} 21. Rxh6 {
[%emt 0:01:20]} Rh8 {[%emt 0:02:06]} 22. Qg5+ {[%emt 0:00:44]} Ke8 {[%emt 0:00:
00]} 23. Rxh8+ {[%emt 0:00:49]} Qxh8 {[%emt 0:00:22]} 24. Nh4 {[%emt 0:06:32]}
Ndf8 {[%emt 0:05:09]} 25. Nxg6 {[%emt 0:07:58]} Nxg6 {[%emt 0:00:06]} 26. Ne3 {
[%emt 0:03:25]} Qh7 {[%emt 0:00:59]} 27. Ng4 {[%emt 0:04:18]} Nf4+ {[%emt 0:00:
00]} 28. Qxf4 {[%emt 0:00:42]} Qd3+ {[%emt 0:00:10]} 29. Ke1 {[%emt 0:00:06]}
Qb1+ {[%emt 0:00:40]} 30. Ke2 {[%emt 0:22:23]} Qd3+ {[%emt 0:00:04]} 31. Ke1 {
[%emt 0:00:50]} Qb1+ {[%emt 0:00:03]} 32. Ke2 {[%emt 0:06:34]} Qd3+ {[%emt 0:
00:00]} 33. Ke1 {[%emt 0:00:07]} Qb1+ {[%emt 0:00:06]} 34. Ke2 {[%emt 0:00:40]}
Qd3+ {[%emt 0:00:03]} 1/2-1/2

[Event "44th Chess Olympiad Women 2022"]
[Site "Chennai"]
[Date "2022.07.31"]
[Round "3.33"]
[White "Foudzi, Siti Zulaikha"]
[Black "Nakabo, Peninah"]
[Result "1/2-1/2"]
[WhiteElo "2188"]
[BlackElo "1747"]
[Annotator "ChessBase"]
[PlyCount "101"]
[EventDate "2022.??.??"]
[TimeControl "60"]

1. e4 {[%emt 0:00:02]} c6 {[%emt 0:00:35]} 2. d4 {[%emt 0:00:06]} d5 {[%emt 0:
00:00]} 3. e5 {[%emt 0:00:04]} c5 {[%emt 0:00:09]} 4. Nf3 {[%emt 0:00:23]} Nc6
{[%emt 0:00:21]} 5. c3 {[%emt 0:02:54]} Bg4 {[%emt 0:00:38]} 6. Be2 {[%emt 0:
00:00]} e6 {[%emt 0:00:18]} 7. Nbd2 {[%emt 0:02:09]} Qb6 {[%emt 0:01:34]} 8.
O-O {[%emt 0:05:30]} cxd4 {[%emt 0:00:50]} 9. Nxd4 {[%emt 0:00:07]} Bxe2 {
[%emt 0:01:01]} 10. Qxe2 {[%emt 0:00:03]} Nxd4 {[%emt 0:00:41]} 11. cxd4 {
[%emt 0:00:03]} Ne7 {[%emt 0:00:39]} 12. Nb3 {[%emt 0:03:39]} Nc6 {[%emt 0:00:
00]} 13. Be3 {[%emt 0:01:36]} a5 {[%emt 0:06:08]} 14. Rac1 {[%emt 0:02:18]} a4
{[%emt 0:04:50]} 15. Nc5 {[%emt 0:01:41]} Bxc5 {[%emt 0:00:41]} 16. Rxc5 {
[%emt 0:00:45]} O-O {[%emt 0:02:49]} 17. Rfc1 {[%emt 0:05:24]} Rfc8 {[%emt 0:
00:00]} 18. Qc2 {[%emt 0:11:15]} Qd8 {[%emt 0:03:44]} 19. h3 {[%emt 0:03:58]}
h6 {[%emt 0:00:59]} 20. Kf1 {[%emt 0:10:57]} Ne7 {[%emt 0:01:05]} 21. Rxc8 {
[%emt 0:03:26]} Qxc8 {[%emt 0:00:49]} 22. Qc7 {[%emt 0:04:38]} Nc6 {[%emt 0:00:
00]} 23. Qxc8+ {[%emt 0:04:26]} Rxc8 {[%emt 0:00:10]} 24. Rc5 {[%emt 0:00:03]}
Kf8 {[%emt 0:02:50]} 25. Rb5 {[%emt 0:02:16]} Rb8 {[%emt 0:03:45]} 26. Rc5 {
[%emt 0:11:38]} Ke7 {[%emt 0:00:45]} 27. Ke2 {[%emt 0:01:41]} Kd7 {[%emt 0:00:
00]} 28. f4 {[%emt 0:05:19]} b6 {[%emt 0:02:14]} 29. Rc1 {[%emt 0:00:16]} Rc8 {
[%emt 0:01:06]} 30. Kd2 {[%emt 0:02:19]} Ne7 {[%emt 0:00:41]} 31. Rxc8 {
[%emt 0:00:12]} Nxc8 {[%emt 0:00:11]} 32. b3 {[%emt 0:04:26]} axb3 {[%emt 0:00:
00]} 33. axb3 {[%emt 0:00:03]} Kc6 {[%emt 0:00:11]} 34. Kc3 {[%emt 0:00:27]}
Kb5 {[%emt 0:00:47]} 35. Bc1 {[%emt 0:01:57]} h5 {[%emt 0:00:46]} 36. Ba3 {
[%emt 0:00:15]} g6 {[%emt 0:00:33]} 37. g4 {[%emt 0:00:26]} hxg4 {[%emt 0:00:
00]} 38. hxg4 {[%emt 0:00:02]} Na7 {[%emt 0:01:26]} 39. Bf8 {[%emt 0:02:01]}
Nc6 {[%emt 0:01:37]} 40. Bd6 {[%emt 0:01:50]} Na7 {[%emt 0:02:54]} 41. Bf8 {
[%emt 0:30:06]} Kc6 {[%emt 0:31:46]} 42. Be7 {[%emt 0:01:34]} Kd7 {[%emt 0:00:
00]} 43. Bf8 {[%emt 0:01:22]} Ke8 {[%emt 0:01:43]} 44. Bb4 {[%emt 0:00:28]} Kd7
{[%emt 0:01:02]} 45. Bf8 {[%emt 0:00:38]} Kc6 {[%emt 0:01:02]} 46. Be7 {
[%emt 0:01:42]} Nb5+ {[%emt 0:00:19]} 47. Kd3 {[%emt 0:00:13]} Nc7 {[%emt 0:00:
00]} 48. Kc3 {[%emt 0:01:23]} Ne8 {[%emt 0:03:22]} 49. Bd8 {[%emt 0:00:00]} Kb5
{[%emt 0:00:00]} 50. Be7 {[%emt 0:00:00]} Nc7 {[%emt 0:00:00]} 51. Bd6 {
[%emt 0:00:00]} 1/2-1/2

[Event "44th Chess Olympiad Women 2022"]
[Site "Chennai"]
[Date "2022.07.31"]
[Round "3.33"]
[White "Kawuma Patricia"]
[Black "Sim, Jia Ru"]
[Result "0-1"]
[WhiteElo "1653"]
[BlackElo "2005"]
[Annotator "NA RC"]
[PlyCount "78"]
[EventDate "2022.??.??"]
[TimeControl "60"]

1. e4 {[%emt 0:00:30]} c5 {[%emt 0:00:13]} 2. Nf3 {[%emt 0:00:00]} e6 {[%emt 0:
00:00]} 3. d4 {[%emt 0:00:23]} cxd4 {[%emt 0:00:11]} 4. Nxd4 {[%emt 0:00:09]}
Nc6 {[%emt 0:00:10]} 5. Be3 {[%emt 0:02:44]} Qc7 {[%emt 0:00:27]} 6. Bd3 {
[%emt 0:00:41]} a6 {[%emt 0:00:53]} 7. a3 {[%emt 0:00:27]} Nf6 {[%emt 0:01:40]}
8. Nc3 {[%emt 0:00:49]} b5 {[%emt 0:00:46]} 9. Nxc6 {[%emt 0:06:54]} dxc6 {
[%emt 0:00:41]} 10. O-O {[%emt 0:00:39]} Bb7 {[%emt 0:04:02]} 11. f3 {[%emt 0:
00:00]} Be7 {[%emt 0:02:41]} 12. Qe1 {[%emt 0:00:59]} c5 {[%emt 0:04:19]} 13.
Qf2 {[%emt 0:01:59]} O-O {[%emt 0:03:29]} 14. Bg5 {[%emt 0:02:15]} c4 {[%emt 0:
00:00]} 15. Be2 {[%emt 0:00:38]} Ng4 16. fxg4 {[%emt 0:01:27]} Bxg5 {[%emt 0:
00:00]} 17. h4 {[%emt 0:00:46]} Be7 {[%emt 0:01:47]} 18. Kh1 {[%emt 0:00:10]}
Qe5 {[%emt 0:03:29]} 19. Rad1 {[%emt 0:01:54]} Bd6 {[%emt 0:04:30]} 20. Rxd6 {
[%emt 0:02:26]} Qxd6 {[%emt 0:00:09]} 21. h5 {[%emt 0:05:12]} h6 {[%emt 0:00:
00]} 22. Bf3 {[%emt 0:00:25]} Qe5 {[%emt 0:09:09]} 23. Qb6 {[%emt 0:01:16]}
Rab8 {[%emt 0:00:43]} 24. Qe3 {[%emt 0:00:41]} f5 {[%emt 0:01:20]} 25. gxf5 {
[%emt 0:00:46]} exf5 {[%emt 0:00:11]} 26. Qc1 {[%emt 0:01:10]} fxe4 {[%emt 0:
00:00]} 27. Nxe4 {[%emt 0:00:31]} Bxe4 {[%emt 0:00:34]} 28. Re1 {[%emt 0:00:10]
} Rxf3 {[%emt 0:00:55]} 29. Rxe4 {[%emt 0:00:45]} Qxe4 {[%emt 0:00:06]} 30.
gxf3 {[%emt 0:00:03]} Qxf3+ {[%emt 0:00:07]} 31. Kg1 {[%emt 0:00:17]} Rd8 {
[%emt 0:00:09]} 32. Kh2 {[%emt 0:00:14]} Rd1 {[%emt 0:00:07]} 33. Qxd1 {
[%emt 0:01:23]} Qxd1 {[%emt 0:00:07]} 34. Kh3 {[%emt 0:00:09]} g5 {[%emt 0:00:
00]} 35. hxg6 {[%emt 0:00:12]} h5 {[%emt 0:00:07]} 36. g7 {[%emt 0:00:05]} Qg4+
{[%emt 0:00:13]} 37. Kh2 {[%emt 0:00:11]} h4 {[%emt 0:00:05]} 38. a4 {[%emt 0:
00:00]} h3 {[%emt 0:00:04]} 39. axb5 {[%emt 0:00:16]} Qg2# {[%emt 0:00:05]} 0-1

[Event "44th Chess Olympiad Women 2022"]
[Site "Chennai"]
[Date "2022.07.31"]
[Round "3.34"]
[White "Charinda, Kudzanayi"]
[Black "Verbin, Valentina"]
[Result "1-0"]
[WhiteElo "1719"]
[BlackElo "2069"]
[Annotator "NA"]
[PlyCount "71"]
[EventDate "2022.??.??"]
[TimeControl "60"]

1. e4 {[%emt 0:00:31]} c5 {[%emt 0:00:15]} 2. Nf3 {[%emt 0:00:08]} d6 {[%emt 0:
00:00]} 3. d4 {[%emt 0:00:22]} cxd4 {[%emt 0:00:09]} 4. Nxd4 {[%emt 0:00:21]}
Nf6 {[%emt 0:00:12]} 5. Nc3 {[%emt 0:00:23]} Nc6 {[%emt 0:00:21]} 6. f3 {
[%emt 0:01:49]} e5 {[%emt 0:00:38]} 7. Nb3 {[%emt 0:02:38]} Be6 {[%emt 0:01:08]
} 8. Be3 {[%emt 0:00:48]} Be7 {[%emt 0:00:54]} 9. Qd2 {[%emt 0:01:15]} O-O {
[%emt 0:16:10]} 10. O-O-O {[%emt 0:01:21]} a5 {[%emt 0:00:24]} 11. Kb1 {
[%emt 0:01:08]} a4 {[%emt 0:02:00]} 12. Nc1 {[%emt 0:00:59]} a3 {[%emt 0:07:34]
} 13. b3 {[%emt 0:00:58]} Qa5 {[%emt 0:09:09]} 14. g4 {[%emt 0:04:37]} d5 {
[%emt 0:12:41]} 15. Nxd5 {[%emt 0:06:27]} Bxd5 {[%emt 0:02:43]} 16. exd5 {
[%emt 0:05:07]} Nxd5 {[%emt 0:02:40]} 17. Qxd5 {[%emt 0:02:46]} Qc3 {[%emt 0:
00:00]} 18. Nd3 {[%emt 0:00:19]} Rad8 {[%emt 0:00:06]} 19. Qc4 {[%emt 0:03:44]}
Rxd3 {[%emt 0:00:18]} 20. Qxc3 {[%emt 0:00:59]} Rxc3 {[%emt 0:23:15]} 21. Bd3 {
[%emt 0:01:30]} Rd8 {[%emt 0:06:48]} 22. Bb6 {[%emt 0:09:23]} Ra8 {[%emt 0:00:
00]} 23. Be4 {[%emt 0:01:42]} Ra6 {[%emt 0:02:13]} 24. Bf2 {[%emt 0:03:45]} Kf8
{[%emt 0:04:03]} 25. Rd7 {[%emt 0:01:43]} Nd8 {[%emt 0:00:58]} 26. Rhd1 {
[%emt 0:01:03]} Ra8 {[%emt 0:01:01]} 27. Bg3 {[%emt 0:04:08]} f6 {[%emt 0:00:
00]} 28. g5 {[%emt 0:01:18]} Rac8 {[%emt 0:00:29]} 29. gxf6 {[%emt 0:00:57]}
gxf6 {[%emt 0:00:03]} 30. f4 {[%emt 0:03:19]} exf4 {[%emt 0:00:45]} 31. Bxf4 {
[%emt 0:00:14]} h5 {[%emt 0:00:57]} 32. Bh6+ {[%emt 0:01:15]} Kf7 {[%emt 0:00:
00]} 33. Bf4 {[%emt 0:04:10]} b5 {[%emt 0:01:06]} 34. Bd6 {[%emt 0:01:26]} Re3
{[%emt 0:00:31]} 35. Rxe7+ {[%emt 0:00:00]} Kg8 {[%emt 0:00:26]} 36. Bd5+ {
[%emt 0:00:18]} 1-0